{"text_format":"1","workbook":"xlsx","n_sheets":1,"sheets":["Foglio1"],"not_rendered":{"charts":1,"images":0,"macros":1,"external_links":0,"defined_names":5,"comments":0,"pivot_tables":0},"unopened":[],"bounds":{"document_bytes":16777216,"sheet_cells":100000,"rows_first":2000,"rows_last":500,"rows_between":2000,"halvings":0,"cell_chars":16384,"cell_head_chars":4096},"cells_cut":0,"cells_raw":0,"read":"whole","date_system":"1900"}

{"sheet":"Foglio1","index":0,"n_rows":81,"n_cols":27,"rows_kept":81,"cut":false,"hidden":false,"merged":[[7,3,7,6],[4,2,4,6]]}
[]
[null,"Metodo di Newton Rapson"]
[]
[]
[null,"f(x)=","sin(x)-ln(x)"]
[]
[null,null,"dx=",1E-3]
[null,null,"f'(x)=","cos(x)-1/x"]
[]
[]
[null,"xn","f(xn)","f'(xn)",null,null,5]
[null,0.1,{"$f":"f(espressionef,B12)","v":{"$error":"#NAME?"}},{"$f":"F1D(B12)","v":{"$error":"#NAME?"}}]
[null,{"$f":"succ(espressionef,B12)","v":{"$error":"#NAME?"}},{"$f":"f(espressionef,B13)","v":{"$error":"#NAME?"}},{"$error":"#NAME?"},null,"xmin",0.1]
[null,{"$error":"#NAME?"},{"$f":"f(espressionef,B14)","v":{"$error":"#NAME?"}},{"$error":"#NAME?"},null,"xmax",6]
[null,{"$error":"#NAME?"},{"$error":"#NAME?"},{"$error":"#NAME?"}]
[null,{"$error":"#NAME?"},{"$error":"#NAME?"},{"$error":"#NAME?"}]
[null,{"$error":"#NAME?"},{"$error":"#NAME?"},{"$error":"#NAME?"}]
[null,{"$error":"#NAME?"},{"$error":"#NAME?"},{"$error":"#NAME?"}]
[null,{"$error":"#NAME?"},{"$error":"#NAME?"},{"$error":"#NAME?"}]
[null,{"$error":"#NAME?"},{"$f":"f(espressionef,B20)","v":{"$error":"#NAME?"}},{"$error":"#NAME?"}]
[null,{"$error":"#NAME?"},{"$error":"#NAME?"},{"$error":"#NAME?"}]
[null,{"$error":"#NAME?"},{"$error":"#NAME?"},{"$error":"#NAME?"}]
[null,{"$error":"#NAME?"},{"$error":"#NAME?"},{"$error":"#NAME?"}]
[null,null,null,null,null,null,null,null,null,null,null,null,null,null,null,null,2]
[null,null,null,null,null,null,null,null,null,null,null,null,null,null,null,"passo",{"$f":"(G14-G13)/50","v":0.11800000000000001}]
[null,null,null,null,null,null,null,null,"qwdwqd"]
[]
[]
[null,null,null,null,null,null,null,null,null,null,null,null,null,null,null,null,"GRAFICO DI y=f(x)",null,null,null,null,0]
[null,null,null,null,null,null,null,null,null,null,null,null,null,null,null,null,"x","y=f(x)",null,null,null,0,{"$f":"B12","v":0.1},0,null,{"$f":"W30:X30","v":0.1},0]
[null,null,null,null,null,null,null,null,null,null,null,null,null,null,null,null,{"$f":"G13","v":0.1},{"$f":"f(espressionef,Q31)","v":{"$error":"#NAME?"}},null,null,null,{"$f":"IF(V30=V29,V30+1,V30)","v":1},{"$f":"W30","v":0.1},{"$f":"f(espressionef,W30)","v":{"$error":"#NAME?"}},null,{"$f":"IF(V31<=iter,W31:X31,Z30:AA30)","v":0.1},{"$error":"#NAME?"}]
[null,null,null,null,null,null,null,null,null,null,null,null,null,null,null,null,{"$f":"Q31+$Q$25","v":0.21800000000000003},{"$f":"f(espressionef,Q32)","v":{"$error":"#NAME?"}},null,null,null,{"$f":"IF(V31=V30,V31+1,V31)","v":1},{"$f":"succ(espressionef,W31)","v":{"$error":"#NAME?"}},{"$f":"0","v":0},null,{"$f":"IF(V32<=iter,W32:X32,Z31:AA31)","v":{"$error":"#NAME?"}},0]
[null,null,null,null,null,null,null,null,null,null,null,null,null,null,null,null,0.33600000000000002,{"$error":"#NAME?"},null,null,null,2,{"$f":"W32","v":{"$error":"#NAME?"}},{"$f":"f(espressionef,W32)","v":{"$error":"#NAME?"}},null,{"$f":"IF(V33<=iter,W33:X33,Z32:AA32)","v":{"$error":"#NAME?"}},{"$error":"#NAME?"}]
[null,null,null,null,null,null,null,null,null,null,null,null,null,null,null,null,0.45400000000000001,{"$error":"#NAME?"},null,null,null,2,{"$f":"succ(espressionef,W33)","v":{"$error":"#NAME?"}},{"$f":"0","v":0},null,{"$f":"IF(V34<=iter,W34:X34,Z33:AA33)","v":{"$error":"#NAME?"}},0]
[null,null,null,null,null,null,null,null,null,null,null,null,null,null,null,null,0.57200000000000006,{"$error":"#NAME?"},null,null,null,3,{"$f":"W34","v":{"$error":"#NAME?"}},{"$f":"f(espressionef,W34)","v":{"$error":"#NAME?"}},null,{"$f":"IF(V35<=iter,W35:X35,Z34:AA34)","v":{"$error":"#NAME?"}},{"$error":"#NAME?"}]
[null,null,null,null,null,null,null,null,null,null,null,null,null,null,null,null,0.69000000000000006,{"$error":"#NAME?"},null,null,null,3,{"$f":"succ(espressionef,W35)","v":{"$error":"#NAME?"}},{"$f":"0","v":0},null,{"$f":"IF(V36<=iter,W36:X36,Z35:AA35)","v":{"$error":"#NAME?"}},0]
[null,null,null,null,null,null,null,null,null,null,null,null,null,null,null,null,0.80800000000000005,{"$error":"#NAME?"},null,null,null,4,{"$f":"W36","v":{"$error":"#NAME?"}},{"$f":"f(espressionef,W36)","v":{"$error":"#NAME?"}},null,{"$f":"IF(V37<=iter,W37:X37,Z36:AA36)","v":{"$error":"#NAME?"}},{"$error":"#NAME?"}]
[null,null,null,null,null,null,null,null,null,null,null,null,null,null,null,null,0.92600000000000005,{"$error":"#NAME?"},null,null,null,4,{"$f":"succ(espressionef,W37)","v":{"$error":"#NAME?"}},{"$f":"0","v":0},null,{"$f":"IF(V38<=iter,W38:X38,Z37:AA37)","v":{"$error":"#NAME?"}},0]
[null,null,null,null,null,null,null,null,null,null,null,null,null,null,null,null,1.044,{"$error":"#NAME?"},null,null,null,5,{"$f":"W38","v":{"$error":"#NAME?"}},{"$f":"f(espressionef,W38)","v":{"$error":"#NAME?"}},null,{"$f":"IF(V39<=iter,W39:X39,Z38:AA38)","v":{"$error":"#NAME?"}},{"$error":"#NAME?"}]
[null,null,null,null,null,null,null,null,null,null,null,null,null,null,null,null,1.1620000000000001,{"$error":"#NAME?"},null,null,null,5,{"$f":"succ(espressionef,W39)","v":{"$error":"#NAME?"}},{"$f":"0","v":0},null,{"$f":"IF(V40<=iter,W40:X40,Z39:AA39)","v":{"$error":"#NAME?"}},0]
[null,null,null,null,null,null,null,null,null,null,null,null,null,null,null,null,1.2800000000000002,{"$error":"#NAME?"},null,null,null,6,{"$f":"W40","v":{"$error":"#NAME?"}},{"$f":"f(espressionef,W40)","v":{"$error":"#NAME?"}},null,{"$f":"IF(V41<=iter,W41:X41,Z40:AA40)","v":{"$error":"#NAME?"}},0]
[null,null,null,null,null,null,null,null,null,null,null,null,null,null,null,null,1.3980000000000004,{"$error":"#NAME?"},null,null,null,6,{"$f":"succ(espressionef,W41)","v":{"$error":"#NAME?"}},{"$f":"0","v":0},null,{"$f":"IF(V42<=iter,W42:X42,Z41:AA41)","v":{"$error":"#NAME?"}},0]
[null,null,null,null,null,null,null,null,null,null,null,null,null,null,null,null,1.5160000000000005,{"$error":"#NAME?"},null,null,null,7,{"$f":"W42","v":{"$error":"#NAME?"}},{"$f":"f(espressionef,W42)","v":{"$error":"#NAME?"}},null,{"$f":"IF(V43<=iter,W43:X43,Z42:AA42)","v":{"$error":"#NAME?"}},0]
[null,null,null,null,null,null,null,null,null,null,null,null,null,null,null,null,1.6340000000000006,{"$error":"#NAME?"},null,null,null,7,{"$f":"succ(espressionef,W43)","v":{"$error":"#NAME?"}},{"$f":"0","v":0},null,{"$f":"IF(V44<=iter,W44:X44,Z43:AA43)","v":{"$error":"#NAME?"}},0]
[null,null,null,null,null,null,null,null,null,null,null,null,null,null,null,null,1.7520000000000007,{"$error":"#NAME?"},null,null,null,8,{"$f":"W44","v":{"$error":"#NAME?"}},{"$f":"f(espressionef,W44)","v":{"$error":"#NAME?"}},null,{"$f":"IF(V45<=iter,W45:X45,Z44:AA44)","v":{"$error":"#NAME?"}},0]
[null,null,null,null,null,null,null,null,null,null,null,null,null,null,null,null,1.8700000000000008,{"$error":"#NAME?"},null,null,null,8,{"$f":"succ(espressionef,W45)","v":{"$error":"#NAME?"}},{"$f":"0","v":0},null,{"$f":"IF(V46<=iter,W46:X46,Z45:AA45)","v":{"$error":"#NAME?"}},0]
[null,null,null,null,null,null,null,null,null,null,null,null,null,null,null,null,1.9880000000000009,{"$error":"#NAME?"},null,null,null,9,{"$f":"W46","v":{"$error":"#NAME?"}},{"$f":"f(espressionef,W46)","v":{"$error":"#NAME?"}},null,{"$f":"IF(V47<=iter,W47:X47,Z46:AA46)","v":{"$error":"#NAME?"}},0]
[null,null,null,null,null,null,null,null,null,null,null,null,null,null,null,null,2.1060000000000008,{"$error":"#NAME?"},null,null,null,9,{"$f":"succ(espressionef,W47)","v":{"$error":"#NAME?"}},{"$f":"0","v":0},null,{"$f":"IF(V48<=iter,W48:X48,Z47:AA47)","v":{"$error":"#NAME?"}},0]
[null,null,null,null,null,null,null,null,null,null,null,null,null,null,null,null,2.2240000000000006,{"$error":"#NAME?"},null,null,null,10,{"$f":"W48","v":{"$error":"#NAME?"}},{"$f":"f(espressionef,W48)","v":{"$error":"#NAME?"}},null,{"$f":"IF(V49<=iter,W49:X49,Z48:AA48)","v":{"$error":"#NAME?"}},0]
[null,null,null,null,null,null,null,null,null,null,null,null,null,null,null,null,2.3420000000000005,{"$error":"#NAME?"},null,null,null,10,{"$f":"succ(espressionef,W49)","v":{"$error":"#NAME?"}},{"$f":"0","v":0},null,{"$f":"IF(V50<=iter,W50:X50,Z49:AA49)","v":{"$error":"#NAME?"}},0]
[null,null,null,null,null,null,null,null,null,null,null,null,null,null,null,null,2.4600000000000004,{"$error":"#NAME?"},null,null,null,11,{"$f":"W50","v":{"$error":"#NAME?"}},{"$f":"f(espressionef,W50)","v":{"$error":"#NAME?"}},null,{"$f":"IF(V51<=iter,W51:X51,Z50:AA50)","v":{"$error":"#NAME?"}},0]
[null,null,null,null,null,null,null,null,null,null,null,null,null,null,null,null,2.5780000000000003,{"$error":"#NAME?"},null,null,null,11,{"$f":"succ(espressionef,W51)","v":{"$error":"#NAME?"}},{"$f":"0","v":0},null,{"$f":"IF(V52<=iter,W52:X52,Z51:AA51)","v":{"$error":"#NAME?"}},0]
[null,null,null,null,null,null,null,null,null,null,null,null,null,null,null,null,2.6960000000000002,{"$error":"#NAME?"},null,null,null,12,{"$f":"W52","v":{"$error":"#NAME?"}},{"$f":"f(espressionef,W52)","v":{"$error":"#NAME?"}},null,{"$f":"IF(V53<=iter,W53:X53,Z52:AA52)","v":{"$error":"#NAME?"}},0]
[null,null,null,null,null,null,null,null,null,null,null,null,null,null,null,null,2.8140000000000001,{"$error":"#NAME?"},null,null,null,12,{"$f":"succ(espressionef,W53)","v":{"$error":"#NAME?"}},{"$f":"0","v":0},null,{"$f":"IF(V54<=iter,W54:X54,Z53:AA53)","v":{"$error":"#NAME?"}},0]
[null,null,null,null,null,null,null,null,null,null,null,null,null,null,null,null,2.9319999999999999,{"$error":"#NAME?"},null,null,null,13,{"$f":"W54","v":{"$error":"#NAME?"}},{"$f":"f(espressionef,W54)","v":{"$error":"#NAME?"}},null,{"$f":"IF(V55<=iter,W55:X55,Z54:AA54)","v":{"$error":"#NAME?"}},0]
[null,null,null,null,null,null,null,null,null,null,null,null,null,null,null,null,3.05,{"$error":"#NAME?"},null,null,null,13,{"$f":"succ(espressionef,W55)","v":{"$error":"#NAME?"}},{"$f":"0","v":0},null,{"$f":"IF(V56<=iter,W56:X56,Z55:AA55)","v":{"$error":"#NAME?"}},0]
[null,null,null,null,null,null,null,null,null,null,null,null,null,null,null,null,3.1679999999999997,{"$error":"#NAME?"},null,null,null,14,{"$f":"W56","v":{"$error":"#NAME?"}},{"$f":"f(espressionef,W56)","v":{"$error":"#NAME?"}},null,{"$f":"IF(V57<=iter,W57:X57,Z56:AA56)","v":{"$error":"#NAME?"}},0]
[null,null,null,null,null,null,null,null,null,null,null,null,null,null,null,null,3.2859999999999996,{"$error":"#NAME?"},null,null,null,14,{"$f":"succ(espressionef,W57)","v":{"$error":"#NAME?"}},{"$f":"0","v":0},null,{"$f":"IF(V58<=iter,W58:X58,Z57:AA57)","v":{"$error":"#NAME?"}},0]
[null,null,null,null,null,null,null,null,null,null,null,null,null,null,null,null,3.4039999999999995,{"$error":"#NAME?"},null,null,null,15,{"$f":"W58","v":{"$error":"#NAME?"}},{"$f":"f(espressionef,W58)","v":{"$error":"#NAME?"}},null,{"$f":"IF(V59<=iter,W59:X59,Z58:AA58)","v":{"$error":"#NAME?"}},0]
[null,null,null,null,null,null,null,null,null,null,null,null,null,null,null,null,3.5219999999999994,{"$error":"#NAME?"},null,null,null,15,{"$f":"succ(espressionef,W59)","v":{"$error":"#NAME?"}},{"$f":"0","v":0},null,{"$f":"IF(V60<=iter,W60:X60,Z59:AA59)","v":{"$error":"#NAME?"}},0]
[null,null,null,null,null,null,null,null,null,null,null,null,null,null,null,null,3.6399999999999992,{"$error":"#NAME?"},null,null,null,16,{"$f":"W60","v":{"$error":"#NAME?"}},{"$f":"f(espressionef,W60)","v":{"$error":"#NAME?"}},null,{"$f":"IF(V61<=iter,W61:X61,Z60:AA60)","v":{"$error":"#NAME?"}},0]
[null,null,null,null,null,null,null,null,null,null,null,null,null,null,null,null,3.7579999999999991,{"$error":"#NAME?"},null,null,null,16,{"$f":"succ(espressionef,W61)","v":{"$error":"#NAME?"}},{"$f":"0","v":0},null,{"$f":"IF(V62<=iter,W62:X62,Z61:AA61)","v":{"$error":"#NAME?"}},0]
[null,null,null,null,null,null,null,null,null,null,null,null,null,null,null,null,3.875999999999999,{"$error":"#NAME?"},null,null,null,17,{"$f":"W62","v":{"$error":"#NAME?"}},{"$f":"f(espressionef,W62)","v":{"$error":"#NAME?"}},null,{"$f":"IF(V63<=iter,W63:X63,Z62:AA62)","v":{"$error":"#NAME?"}},0]
[null,null,null,null,null,null,null,null,null,null,null,null,null,null,null,null,{"$f":"Q63+$Q$25","v":3.9939999999999989},{"$error":"#NAME?"},null,null,null,17,{"$f":"succ(espressionef,W63)","v":{"$error":"#NAME?"}},{"$f":"0","v":0},null,{"$f":"IF(V64<=iter,W64:X64,Z63:AA63)","v":{"$error":"#NAME?"}},0]
[null,null,null,null,null,null,null,null,null,null,null,null,null,null,null,null,4.1119999999999992,{"$error":"#NAME?"},null,null,null,18,{"$f":"W64","v":{"$error":"#NAME?"}},{"$f":"f(espressionef,W64)","v":{"$error":"#NAME?"}},null,{"$f":"IF(V65<=iter,W65:X65,Z64:AA64)","v":{"$error":"#NAME?"}},0]
[null,null,null,null,null,null,null,null,null,null,null,null,null,null,null,null,4.2299999999999995,{"$error":"#NAME?"},null,null,null,18,{"$f":"succ(espressionef,W65)","v":{"$error":"#NAME?"}},{"$f":"0","v":0},null,{"$f":"IF(V66<=iter,W66:X66,Z65:AA65)","v":{"$error":"#NAME?"}},0]
[null,null,null,null,null,null,null,null,null,null,null,null,null,null,null,null,4.3479999999999999,{"$error":"#NAME?"}]
[null,null,null,null,null,null,null,null,null,null,null,null,null,null,null,null,4.4660000000000002,{"$error":"#NAME?"}]
[null,null,null,null,null,null,null,null,null,null,null,null,null,null,null,null,4.5840000000000005,{"$error":"#NAME?"}]
[null,null,null,null,null,null,null,null,null,null,null,null,null,null,null,null,4.7020000000000008,{"$error":"#NAME?"}]
[null,null,null,null,null,null,null,null,null,null,null,null,null,null,null,null,4.8200000000000012,{"$error":"#NAME?"}]
[null,null,null,null,null,null,null,null,null,null,null,null,null,null,null,null,4.9380000000000015,{"$error":"#NAME?"}]
[null,null,null,null,null,null,null,null,null,null,null,null,null,null,null,null,5.0560000000000018,{"$error":"#NAME?"}]
[null,null,null,null,null,null,null,null,null,null,null,null,null,null,null,null,5.1740000000000022,{"$error":"#NAME?"}]
[null,null,null,null,null,null,null,null,null,null,null,null,null,null,null,null,5.2920000000000025,{"$error":"#NAME?"}]
[null,null,null,null,null,null,null,null,null,null,null,null,null,null,null,null,5.4100000000000028,{"$error":"#NAME?"}]
[null,null,null,null,null,null,null,null,null,null,null,null,null,null,null,null,5.5280000000000031,{"$error":"#NAME?"}]
[null,null,null,null,null,null,null,null,null,null,null,null,null,null,null,null,5.6460000000000035,{"$error":"#NAME?"}]
[null,null,null,null,null,null,null,null,null,null,null,null,null,null,null,null,5.7640000000000038,{"$error":"#NAME?"}]
[null,null,null,null,null,null,null,null,null,null,null,null,null,null,null,null,5.8820000000000041,{"$error":"#NAME?"}]
[null,null,null,null,null,null,null,null,null,null,null,null,null,null,null,null,6.0000000000000044,{"$error":"#NAME?"}]